bitfinex-derivatives/quotes_BTCF0:USTF0_20250930
["timestamp","ask_amount","ask_price","bid_price","bid_amount"]
[1759275288887,1.65236009,113900.0,113890.0,0.01439]
[1759275290703,0.85228009,113900.0,113890.0,0.01439]
[1759275290898,3.43308009,113900.0,113890.0,0.01399]
[1759275291094,0.85228009,113900.0,113890.0,0.03622]
[1759275291298,3.43308009,113900.0,113890.0,0.03622]
[1759275291498,3.43308009,113900.0,113890.0,0.03662]
[1759275293398,1.00258009,113900.0,113890.0,0.03662]
[1759275293601,3.58342009,113900.0,113890.0,0.03662]
[1759275293802,1.00258009,113900.0,113890.0,0.01439]
[1759275294104,3.58342009,113900.0,113890.0,0.01439]
[1759275295801,1.00258009,113900.0,113890.0,0.01439]
[1759275296003,3.58346009,113900.0,113890.0,0.01439]
[1759275296203,1.00258009,113900.0,113890.0,0.01439]
[1759275296402,3.58346009,113900.0,113890.0,0.01439]
[1759275297999,1.00258009,113900.0,113890.0,0.01439]
[1759275298200,3.58350009,113900.0,113890.0,0.01439]
[1759275299812,1.00258009,113900.0,113890.0,0.01439]
[1759275300110,3.58354009,113900.0,113890.0,0.03577]
[1759275301010,1.00258009,113900.0,113890.0,0.03577]
[1759275301309,3.58354009,113900.0,113890.0,0.03577]
[1759275302505,1.00258009,113900.0,113890.0,0.03577]
[1759275302710,3.58354009,113900.0,113890.0,0.03577]
[1759275308914,3.58354009,113900.0,113890.0,0.01439]
[1759275309717,3.58354009,113900.0,113890.0,0.03577]
[1759275310313,4.21926131,113900.0,113890.0,0.03577]
[1759275312214,4.21930131,113900.0,113890.0,0.03577]
[1759275314412,4.21930131,113900.0,113890.0,0.09895477]
[1759275314617,4.21930131,113900.0,113890.0,0.03577]
[1759275315720,1.63830131,113900.0,113890.0,0.03577]
[1759275315920,4.21930131,113900.0,113890.0,0.03577]
[1759275316425,1.63830131,113900.0,113890.0,0.03577]
[1759275316624,4.21930131,113900.0,113890.0,0.03577]
[1759275317721,1.63830131,113900.0,113890.0,0.03577]
[1759275317921,4.21930131,113900.0,113890.0,0.03577]
[1759275318524,1.31342204,113900.0,113890.0,0.03577]
[1759275318824,2.11346204,113900.0,113890.0,0.03577]
[1759275321228,2.11346204,113900.0,113890.0,0.09895477]
[1759275321631,1.31342204,113900.0,113890.0,0.09895477]
[1759275321830,2.11342204,113900.0,113890.0,0.09895477]
[1759275326929,0.97957655,113900.0,113890.0,0.18674417]
[1759275327129,0.81127851,113900.0,113890.0,0.91162344]
[1759275327442,1.61123851,113900.0,113890.0,0.91162344]
[1759275328239,1.69902021,113900.0,113890.0,0.91162344]
[1759275329135,1.54872021,113900.0,113890.0,0.91162344]
[1759275335351,1.21262097,113900.0,113890.0,0.91162344]
[1759275335548,1.89830024,113900.0,113890.0,0.49895477]
[1759275335745,2.22317951,113900.0,113890.0,0.09895477]
[1759275336049,1.89830024,113900.0,113890.0,0.03537]
[1759275336248,1.89830024,113900.0,113890.0,0.03577]
[1759275341055,1.89830024,113900.0,113890.0,0.01399]
[1759275341243,1.89830024,113900.0,113890.0,0.03565]
[1759275341445,1.89830024,113900.0,113890.0,0.03605]
[1759275342653,1.89830024,113900.0,113890.0,0.09923477]
[1759275343753,0.4485817,113900.0,113890.0,0.09923477]
[1759275343960,1.89810024,113900.0,113890.0,0.18702497]
[1759275344252,1.89810024,113900.0,113890.0,0.1238402]
[1759275344648,1.89810024,113900.0,113890.0,0.18702497]
[1759275344849,1.09834024,113900.0,113890.0,0.18702497]
[1759275345050,1.89810024,113900.0,113890.0,0.18702497]
[1759275345256,1.89810024,113900.0,113890.0,0.09923477]
[1759275350250,1.09834024,113900.0,113890.0,0.09923477]
[1759275350448,1.89806024,113900.0,113890.0,0.09923477]
[1759275352766,1.89806024,113900.0,113890.0,0.18702477]
[1759275355762,1.09834024,113900.0,113890.0,0.18702477]
[1759275355959,1.89802024,113900.0,113890.0,0.18702477]
[1759275356565,1.89802024,113900.0,113890.0,0.09923477]
[1759275356968,1.89802024,113900.0,113890.0,0.18702477]
[1759275357869,1.88374943,113900.0,113890.0,0.18702477]
[1759275358668,1.88374943,113900.0,113890.0,0.09923477]
[1759275365867,1.87321098,113900.0,113890.0,0.09923477]
[1759275368374,1.07353098,113900.0,113890.0,0.09923477]
[1759275368569,1.87305098,113900.0,113890.0,0.09923477]
[1759275370275,1.54813756,113900.0,113890.0,0.09923477]
[1759275376680,1.53386669,113900.0,113890.0,0.07757477]
[1759275377183,1.53386669,113900.0,113890.0,0.09908477]
[1759275377884,0.73434669,113900.0,113890.0,0.09908477]
[1759275378078,1.53374669,113900.0,113890.0,0.18687507]
[1759275379382,1.53374669,113900.0,113890.0,0.1236903]
[1759275380284,0.73434669,113900.0,113890.0,0.1236903]
[1759275380484,1.53374669,113900.0,113890.0,0.1236903]
[1759275381484,0.73434669,113900.0,113890.0,0.1236903]
[1759275381686,1.20886157,113900.0,113890.0,0.1236903]
[1759275381878,1.52316858,113900.0,113890.0,0.1236903]
[1759275382274,1.52316858,113900.0,113890.0,0.0359]
[1759275382485,1.52316858,113900.0,113890.0,0.11459661]
[1759275383384,1.52316858,113900.0,113890.0,0.20238681]
[1759275383385,0.72380858,113900.0,113890.0,0.20238681]
[1759275383584,1.52316858,113900.0,113890.0,0.20238681]
[1759275386387,1.16236858,113900.0,113890.0,0.20238681]
[1759275386586,1.52316858,113900.0,113890.0,0.20238681]
[1759275386788,1.48500512,113900.0,113890.0,0.20238681]
[1759275387088,1.57278682,113900.0,113890.0,0.20238681]
[1759275390189,1.57278682,113900.0,113890.0,0.1236902]
[1759275391897,1.56224843,113900.0,113890.0,0.1236902]
[1759275392397,0.76288843,113900.0,113890.0,0.1236902]
[1759275392695,0.76288843,113900.0,113890.0,0.91175351]
[1759275392696,1.2478617,113900.0,113890.0,0.91175351]
[1759275392901,0.3608,113900.0,113890.0,0.92723193]
[1759275393290,0.79924,113900.0,113890.0,0.92723193]
[1759275394098,0.8870223,113900.0,113890.0,0.92723193]
[1759275396799,0.87275262,113900.0,113890.0,0.92723193]
[1759275397299,0.79924,113900.0,113890.0,0.92723193]
[1759275398999,0.4485803,113910.0,113900.0,0.1226126]
[1759275399201,1.2477803,113910.0,113900.0,0.18579659]
[1759275401202,1.2477803,113910.0,113900.0,0.20130921]
[1759275401902,1.23724313,113910.0,113900.0,0.20130921]
[1759275402902,1.2477803,113910.0,113900.0,0.20130921]
[1759275403602,1.57262542,113910.0,113900.0,0.20130921]
[1759275406507,1.57262542,113910.0,113900.0,0.21007243]
[1759275406893,1.55835635,113910.0,113900.0,0.13137582]
[1759275407498,1.55835635,113910.0,113900.0,0.19450269]
[1759275414403,0.75915635,113910.0,113900.0,0.19450269]
[1759275414603,1.55811635,113910.0,113900.0,0.19450269]
[1759275415216,1.55811635,113910.0,113900.0,0.18573947]
[1759275415704,1.55807635,113910.0,113900.0,0.18573947]
[1759275416310,1.55807635,113910.0,113900.0,0.19441823]
[1759275416611,1.54753922,113910.0,113900.0,0.13129136]
[1759275416811,1.54753922,113910.0,113900.0,0.1226126]
[1759275418414,1.54753922,113910.0,113900.0,0.20130921]
[1759275419115,1.54749922,113910.0,113900.0,0.20130921]
[1759275421713,0.74861922,113910.0,113900.0,0.20130921]
[1759275421915,1.54745922,113910.0,113900.0,0.20130921]
[1759275422717,0.74861922,113910.0,113900.0,0.20130921]
[1759275422907,1.54745922,113910.0,113900.0,0.20130921]
[1759275423719,0.74861922,113910.0,113900.0,0.20130921]
[1759275424017,1.54745922,113910.0,113900.0,0.20130921]
[1759275424818,0.74861922,113910.0,113900.0,0.20130921]
[1759275425018,1.54741922,113910.0,113900.0,0.20130921]
[1759275426716,1.53688209,113910.0,113900.0,0.20130921]
[1759275427520,0.41323697,113910.0,113900.0,0.20130921]
[1759275427720,1.53688209,113910.0,113900.0,0.20130921]
[1759275428618,1.53684209,113910.0,113900.0,0.20130921]
[1759275429020,0.41323697,113910.0,113900.0,0.20130921]
[1759275429216,1.17604209,113910.0,113900.0,0.20130921]
[1759275429417,0.37728209,113910.0,113900.0,0.20130921]
[1759275429616,0.448573,113920.0,113910.0,0.123305]
[1759275429917,1.247333,113920.0,113910.0,0.5113474]
[1759275430519,1.247333,113920.0,113910.0,0.18650228]
[1759275431122,1.247333,113920.0,113910.0,0.123305]
[1759275431320,1.247333,113920.0,113910.0,0.18651364]
[1759275431622,1.23306439,113920.0,113910.0,0.18651364]
[1759275432318,1.55772168,113920.0,113910.0,0.51117093]
[1759275433928,1.55772168,113920.0,113910.0,0.44796229]
[1759275434119,1.21119029,113920.0,113910.0,0.44796229]
[1759275435025,0.41243029,113920.0,113910.0,0.44796229]
[1759275435226,1.21115029,113920.0,113910.0,0.44796229]
[1759275435928,1.21115029,113920.0,113910.0,0.51115654]
[1759275436530,0.886493,113920.0,113910.0,0.51115654]
[1759275436828,1.21115029,113920.0,113910.0,0.44796229]
[1759275437125,0.4485643,113930.0,113920.0,0.01376]
[1759275437426,1.57190159,113930.0,113920.0,0.51224758]
[1759275438227,1.2472443,113930.0,113920.0,0.51224758]
[1759275438425,1.57190159,113930.0,113920.0,0.51224758]
[1759275439227,1.21110159,113930.0,113920.0,0.51224758]
[1759275440527,0.41242159,113930.0,113920.0,0.51224758]
[1759275440728,1.21106159,113930.0,113920.0,0.51224758]
[1759275440920,0.8864043,113930.0,113920.0,0.51224758]
[1759275441229,1.21106159,113930.0,113920.0,0.51224758]
[1759275444129,1.21106159,113930.0,113920.0,0.44906419]
[1759275444832,0.41242159,113930.0,113920.0,0.44906419]
[1759275445031,1.21094159,113930.0,113920.0,0.44906419]
[1759275445620,0.41242159,113930.0,113920.0,0.44906419]
[1759275445831,1.21094159,113930.0,113920.0,0.44906419]
[1759275446426,0.41242159,113930.0,113920.0,0.44906419]
[1759275446629,1.21094159,113930.0,113920.0,0.44906419]
[1759275452632,1.21094159,113930.0,113920.0,0.51224758]
[1759275455140,0.41242159,113930.0,113920.0,0.51224758]
[1759275455342,1.21082159,113930.0,113920.0,0.51224758]
[1759275457242,1.2002861,113930.0,113920.0,0.51224758]
[1759275461041,1.2002861,113930.0,113920.0,0.18759029]
[1759275461439,1.19654907,113930.0,113920.0,0.51224758]
[1759275462138,1.19654907,113930.0,113920.0,0.87304758]
[1759275462542,1.21069589,113930.0,113920.0,0.87304758]
[1759275463745,1.21069589,113930.0,113920.0,0.54839029]
[1759275463946,1.21069589,113930.0,113920.0,0.87304758]
[1759275464647,1.21069589,113930.0,113920.0,0.80986419]
[1759275465343,0.41241589,113930.0,113920.0,0.87305055]
[1759275465644,1.21065589,113930.0,113920.0,0.87305055]
[1759275467246,1.20012056,113930.0,113920.0,0.87305055]
[1759275471544,1.21065589,113930.0,113920.0,0.54839326]
[1759275472448,1.21065589,113930.0,113920.0,0.87305055]
[1759275474742,1.12289729,113930.0,113920.0,0.87305055]
[1759275475839,1.57145609,113930.0,113920.0,0.18759286]
[1759275476447,1.48369729,113930.0,113920.0,0.18759286]
[1759275476746,1.48369729,113930.0,113920.0,0.20310311]
[1759275477045,1.12289729,113930.0,113920.0,0.20310311]
[1759275477247,1.11236203,113930.0,113920.0,0.20310311]
[1759275479349,0.32465729,113930.0,113920.0,0.20310311]
[1759275479644,1.12273729,113930.0,113920.0,0.18757126]
[1759275481450,0.32465729,113930.0,113920.0,0.18757126]
[1759275481651,1.12273729,113930.0,113920.0,0.18757126]
[1759275481947,0.52882621,113940.0,113930.0,0.0877598]
[1759275482152,1.16923007,113940.0,113930.0,0.1233898]
[1759275482352,0.3608,113940.0,113930.0,0.51121185]
[1759275482544,0.3608,113940.0,113930.0,0.44804709]
[1759275482747,2.46043192,113950.0,113940.0,0.1233825]
[1759275482945,3.25847192,113950.0,113940.0,0.44803979]
[1759275483145,0.33357673,113950.0,113940.0,0.5267364]
[1759275483352,1.13201673,113950.0,113940.0,0.5267364]
[1759275483848,0.32505729,113950.0,113940.0,0.51112979]
[1759275484051,1.12269729,113950.0,113940.0,0.44803979]
[1759275484246,1.12309729,113950.0,113940.0,0.44803979]
[1759275484649,0.32505729,113950.0,113940.0,0.44803979]
[1759275484841,0.0004,113950.0,113940.0,1.23578708]
[1759275485043,0.68545729,113970.0,113940.0,1.61219369]
[1759275485352,0.69406886,113970.0,113960.0,0.44802419]
[1759275485551,1.49206886,113970.0,113960.0,0.1233669]
[1759275485749,0.68545729,113970.0,113960.0,0.1233669]
[1759275485957,0.3608,113970.0,113960.0,0.77268148]
[1759275486252,1.48385729,113970.0,113960.0,0.44802419]
[1759275487855,1.48385729,113970.0,113960.0,0.1233669]
[1759275488354,1.48385729,113970.0,113960.0,0.44802419]
[1759275488753,1.48385729,113970.0,113960.0,0.1233669]
[1759275488943,1.48385729,113970.0,113960.0,0.44802419]
[1759275492259,1.48359124,113970.0,113960.0,0.1233669]
[1759275498363,0.68559124,113970.0,113960.0,0.1233669]
[1759275498559,1.48327124,113970.0,113960.0,0.1233669]
[1759275499465,0.68559124,113970.0,113960.0,0.1233669]
[1759275499665,1.48323124,113970.0,113960.0,0.1233669]
[1759275499968,0.68559124,113970.0,113960.0,0.1233669]
[1759275500165,1.15884,113970.0,113960.0,0.44775814]
[1759275500460,0.3612,113970.0,113960.0,0.44775814]
[1759275500655,0.0004,113970.0,113960.0,0.84775814]
[1759275501061,0.7976,113970.0,113960.0,0.84775814]
[1759275501369,0.798,113970.0,113960.0,0.84775814]
[1759275502261,0.0004,113970.0,113960.0,0.84775814]
[1759275502561,0.79796,113970.0,113960.0,0.84775814]
[1759275502762,0.0004,113970.0,113960.0,0.8841669]
[1759275502962,0.0004,113970.0,113960.0,1.20855814]
[1759275503169,0.6982,113970.0,113960.0,1.20855814]
[1759275504369,0.79796,113970.0,113960.0,1.20855814]
[1759275512276,0.79796,113970.0,113960.0,1.27162171]
[1759275515780,0.0004,113970.0,113960.0,1.27162171]
[1759275516285,0.513,113980.0,113970.0,0.1219994]
[1759275516479,0.513,113980.0,113970.0,0.80719064]
[1759275516984,0.513,113980.0,113970.0,0.87633906]
[1759275519989,0.48821077,113980.0,113970.0,0.95503567]
[1759275520586,0.48821077,113980.0,113970.0,0.87633906]
[1759275520985,0.48821077,113980.0,113970.0,0.95503567]
[1759275521390,0.48821077,113980.0,113970.0,0.87633906]
[1759275523586,0.48821077,113980.0,113970.0,0.93937661]
[1759275524386,0.4493159,113990.0,113980.0,0.03427]
[1759275524590,1.2465559,113990.0,113980.0,0.35866124]
[1759275526086,1.2465559,113990.0,113980.0,0.44638284]
[1759275534501,1.6465559,113990.0,113980.0,0.01268]
[1759275534700,1.97094714,113990.0,113980.0,0.01268]
[1759275535496,0.0877217,113980.0,113970.0,0.16344495]
[1759275535699,0.77291294,113980.0,113970.0,0.16344495]
[1759275535994,1.1481215,113980.0,113970.0,0.06303755]
[1759275536201,0.0877294,113970.0,113960.0,0.16449435]
[1759275536400,1.57000064,113970.0,113960.0,0.09991287]
[1759275536801,1.57891134,113970.0,113960.0,0.09991287]
[1759275538207,1.57891134,113970.0,113960.0,0.0369]
[1759275539098,1.57891134,113970.0,113960.0,0.0999238]
[1759275539593,1.97891134,113970.0,113960.0,0.0999238]
[1759275539799,2.30330258,113970.0,113960.0,0.0767438]
[1759275540005,2.30330258,113970.0,113960.0,0.07675112]
[1759275540199,1.97891134,113970.0,113960.0,0.07675112]
[1759275540396,1.18183134,113970.0,113960.0,0.07675112]
[1759275540705,1.97887134,113970.0,113960.0,0.07675112]
[1759275541306,1.18183134,113970.0,113960.0,0.01372]
[1759275541501,1.18183134,113970.0,113960.0,0.0767597]
[1759275541709,1.97887134,113970.0,113960.0,0.0767597]
[1759275542001,1.18183134,113970.0,113960.0,0.0767597]
[1759275542202,1.97887134,113970.0,113960.0,0.0767597]
[1759275542506,1.18183134,113970.0,113960.0,0.0767597]
[1759275542708,1.97891134,113970.0,113960.0,0.0767597]
[1759275544205,2.30330258,113970.0,113960.0,0.0767597]
[1759275544698,2.30330258,113970.0,113960.0,0.0630397]
[1759275546106,2.34904506,113970.0,113960.0,0.0630397]
[1759275546410,2.27850736,113970.0,113960.0,0.0630397]
[1759275547012,2.27846736,113970.0,113960.0,0.0630397]
[1759275547312,1.48142736,113970.0,113960.0,0.0630397]
[1759275547514,0.83264488,113970.0,113960.0,0.1001797]
[1759275547714,1.94516542,113970.0,113960.0,0.1001797]
[1759275549015,1.94516542,113970.0,113960.0,0.0769997]
[1759275549416,2.26959666,113970.0,113960.0,0.0769997]
[1759275549615,2.26955666,113970.0,113960.0,0.0769997]
[1759275550114,1.47251666,113970.0,113960.0,0.0769997]
[1759275550314,1.55215877,113970.0,113960.0,0.0769997]
[1759275550714,2.34923877,113970.0,113960.0,0.0769997]
[1759275551819,1.55215877,113970.0,113960.0,0.0769997]
[1759275552018,2.34919877,113970.0,113960.0,0.1001797]
[1759275552618,1.55215877,113970.0,113960.0,0.1001797]
[1759275552816,2.34919877,113970.0,113960.0,0.1001797]
[1759275553518,1.55215877,113970.0,113960.0,0.1001797]
[1759275553716,1.62480753,113970.0,113960.0,0.1001797]
[1759275553918,0.82776753,113970.0,113960.0,0.1001797]
[1759275554218,1.62483448,113970.0,113960.0,0.1001797]
[1759275554818,1.5538828,113970.0,113960.0,0.1001797]
[1759275556417,0.7568428,113970.0,113960.0,0.1001797]
[1759275556623,1.54519237,113970.0,113960.0,0.1001797]
[1759275557717,1.55412281,113970.0,113960.0,0.1001797]
[1759275562623,1.52035883,113970.0,113960.0,0.36155819]
[1759275562926,1.52035883,113970.0,113960.0,0.11583661]
[1759275563321,1.52909632,113970.0,113960.0,0.11583661]
[1759275563523,1.52035883,113970.0,113960.0,0.11583661]
[1759275564718,1.52909984,113970.0,113960.0,0.11583661]
[1759275564917,1.52035883,113970.0,113960.0,0.11583661]
[1759275568025,1.52899476,113970.0,113960.0,0.11583661]
[1759275568925,1.52035883,113970.0,113960.0,0.11583661]
[1759275570426,0.72335883,113970.0,113960.0,0.11583661]
[1759275570629,1.52027883,113970.0,113960.0,0.11583661]
[1759275572625,1.48213819,113970.0,113960.0,0.11583661]
[1759275573530,1.56986759,113970.0,113960.0,0.11583661]
[1759275575830,1.56986759,113970.0,113960.0,0.03714]
[1759275576233,1.56986759,113970.0,113960.0,0.10029362]
[1759275582933,1.2454494,113970.0,113960.0,0.10029362]
[1759275583134,1.56986759,113970.0,113960.0,0.10029362]
[1759275583436,1.56986759,113970.0,113960.0,0.03714]
[1759275585743,1.56986759,113970.0,113960.0,0.10029362]
[1759275586730,1.2453294,113970.0,113960.0,0.10029362]
[1759275586934,1.56974759,113970.0,113960.0,0.03714]
[1759275588444,0.77294759,113970.0,113960.0,0.03714]
[1759275588637,1.56970759,113970.0,113960.0,0.03714]
[1759275588943,1.56970759,113970.0,113960.0,0.36155819]
[1759275590949,0.77294759,113970.0,113960.0,0.36155819]
[1759275591641,1.56966759,113970.0,113960.0,0.36155819]
[1759275592350,1.56966759,113970.0,113960.0,0.42471181]
[1759275592547,1.56966759,113970.0,113960.0,0.10029362]
[1759275594349,1.56966759,113970.0,113960.0,0.42471181]
[1759275594849,0.77294759,113970.0,113960.0,0.10029362]
[1759275595053,1.56962759,113970.0,113960.0,0.42471181]
[1759275596651,0.77294759,113970.0,113960.0,0.42471181]
[1759275596949,1.56962759,113970.0,113960.0,0.42471181]
[1759275597247,1.56962759,113970.0,113960.0,0.10029362]
[1759275598840,0.4485294,113970.0,113960.0,0.10029362]
[1759275599041,0.4485294,113970.0,113960.0,0.8368666]
[1759275599244,1.22037555,113970.0,113960.0,0.77371298]
[1759275599444,1.22077555,113970.0,113960.0,0.77371298]
[1759275599643,1.22037555,113970.0,113960.0,0.77371298]
[1759275599946,1.22077555,113970.0,113960.0,0.77371298]
[1759275601340,0.42413555,113970.0,113960.0,0.77371298]
[1759275601548,1.22077555,113970.0,113960.0,0.77371298]
[1759275601754,0.42413555,113970.0,113960.0,0.77371298]
[1759275602050,1.22077555,113970.0,113960.0,0.77371298]
[1759275606352,0.0004,113970.0,113960.0,1.25240959]
[1759275606754,0.4485262,113980.0,113970.0,0.1235289]
[1759275606950,0.4493212,113980.0,113970.0,0.51111217]
[1759275607150,0.79656,113980.0,113970.0,0.5266437]
[1759275607453,0.79696,113980.0,113970.0,0.9266437]
[1759275607657,0.79656,113980.0,113970.0,0.9266437]
[1759275607857,0.79696,113980.0,113970.0,0.9266437]
[1759275608157,0.8846812,113980.0,113970.0,0.9266437]
[1759275608458,0.8846812,113980.0,113970.0,0.93543713]
[1759275608856,0.8846812,113980.0,113970.0,1.29623713]
[1759275609158,0.85989084,113980.0,113970.0,1.29623713]
[1759275612162,0.85989084,113980.0,113970.0,1.21754052]
[1759275614163,0.85989084,113980.0,113970.0,1.29632052]
[1759275614362,0.85989084,113980.0,113970.0,1.29613444]
[1759275615460,0.85989084,113980.0,113970.0,1.36638448]
[1759275617468,0.0004,113980.0,113970.0,1.36638448]
[1759275617666,0.0877136,113990.0,113980.0,0.1237407]
[1759275617968,0.8849136,113990.0,113980.0,0.18672982]
[1759275618969,1.20914571,113990.0,113980.0,0.09900912]
[1759275619369,1.20914571,113990.0,113980.0,0.18672982]
[1759275619771,1.20914571,113990.0,113980.0,0.09900912]
[1759275620169,1.20914571,113990.0,113980.0,0.18673032]
[1759275621877,0.8849136,113990.0,113980.0,0.18673032]
[1759275622169,1.20914571,113990.0,113980.0,0.18673032]
[1759275628475,0.0885136,113990.0,113980.0,0.18673032]
[1759275628677,1.20902571,113990.0,113980.0,0.18673032]
[1759275635382,1.20902571,113990.0,113980.0,0.1237412]
[1759275636185,1.20902571,113990.0,113980.0,0.12521405]
[1759275640182,1.18423763,113990.0,113980.0,0.12521405]
[1759275640382,1.18423763,113990.0,113980.0,0.20399405]
[1759275644896,0.38795763,113990.0,113980.0,0.20399405]
[1759275645193,1.18415763,113990.0,113980.0,0.20399405]
[1759275645490,1.18415763,113990.0,113980.0,0.2025212]
[1759275645691,1.18415763,113990.0,113980.0,0.20519806]
[1759275650194,1.15936954,113990.0,113980.0,0.12641806]
[1759275650595,1.15936954,113990.0,113980.0,0.03869686]
[1759275651097,1.15936954,113990.0,113980.0,0.12641826]
[1759275651491,1.15936954,113990.0,113980.0,0.12693394]
[1759275651691,1.15936954,113990.0,113980.0,0.03921254]
[1759275651892,1.15936954,113990.0,113980.0,0.20590497]
[1759275652392,1.15936954,113990.0,113980.0,0.20642065]
[1759275653497,1.15936954,113990.0,113980.0,0.2065933]
[1759275653995,0.36316954,113990.0,113980.0,0.2065933]
[1759275654195,1.15932954,113990.0,113980.0,0.2065933]
[1759275654694,0.36316954,113990.0,113980.0,0.2065933]
[1759275654900,0.83509743,113990.0,113980.0,0.2065933]
[1759275655101,1.15932954,113990.0,113980.0,0.2065933]
[1759275659002,0.36316954,113990.0,113980.0,0.2065933]
[1759275659203,1.15932954,113990.0,113980.0,0.20690888]
[1759275660303,0.32503211,113990.0,113980.0,0.20690888]
[1759275660496,1.12115211,113990.0,113980.0,0.20690888]
[1759275661003,1.20887181,113990.0,113980.0,0.20690888]
[1759275668405,0.41275181,113990.0,113980.0,0.20690888]
[1759275668600,1.20883181,113990.0,113980.0,0.20690888]
[1759275669005,0.41275181,113990.0,113980.0,0.20690888]
[1759275669207,0.8845997,113990.0,113980.0,0.20690888]
[1759275670202,0.8837997,113990.0,113980.0,0.20690888]
[1759275670407,0.87407021,113990.0,113980.0,0.20690888]
[1759275671109,0.07799021,113990.0,113980.0,0.20690888]
[1759275671309,0.87407021,113990.0,113980.0,0.20690888]
[1759275671510,0.07799021,113990.0,113980.0,0.20690888]
[1759275671812,0.87407021,113990.0,113980.0,0.20690888]
[1759275672209,0.07799021,113990.0,113980.0,0.20690888]
[1759275672403,0.87407021,113990.0,113980.0,0.20690888]
[1759275672609,0.07799021,113990.0,113980.0,0.12793785]
[1759275672806,0.87407021,113990.0,113980.0,0.12793785]
[1759275673007,0.07799021,113990.0,113980.0,0.12793785]
[1759275673207,0.87403021,113990.0,113980.0,0.12793785]
[1759275673409,0.87403021,113990.0,113980.0,0.20690888]
[1759275673710,0.87403021,113990.0,113980.0,0.12793785]
[1759275674206,0.87403021,113990.0,113980.0,0.45218599]
[1759275674207,1.19827835,113990.0,113980.0,0.45218599]
[1759275675307,1.19827835,113990.0,113980.0,0.12793785]
[1759275675514,0.87403021,113990.0,113980.0,0.45218599]
[1759275675812,1.19827835,113990.0,113980.0,0.45218589]
[1759275677910,1.19827835,113990.0,113980.0,0.12793775]
[1759275678513,1.19827835,113990.0,113980.0,0.45218589]
[1759275679908,1.19827835,113990.0,113980.0,0.12793775]
[1759275680406,1.19827835,113990.0,113980.0,0.45250147]
[1759275682507,1.19827835,113990.0,113980.0,0.45299308]
[1759275684117,0.87403021,113990.0,113980.0,0.45299308]
[1759275684318,1.19827835,113990.0,113980.0,0.45299308]
[1759275685320,1.19827835,113990.0,113980.0,0.12874494]
[1759275685519,1.19827835,113990.0,113980.0,0.45299308]
[1759275686021,1.19827835,113990.0,113980.0,0.53196411]
[1759275686221,1.19827835,113990.0,113980.0,0.20771597]
[1759275686518,1.19827835,113990.0,113980.0,0.53196411]
[1759275686720,1.19827835,113990.0,113980.0,0.45299308]
[1759275690620,1.19819835,113990.0,113980.0,0.45299308]
[1759275691021,0.40223835,113990.0,113980.0,0.45299308]
[1759275691224,1.19819835,113990.0,113980.0,0.45299308]
[1759275696425,1.18766881,113990.0,113980.0,0.45299308]
[1759275696730,1.18766881,113990.0,113980.0,0.53196411]
[1759275698238,0.86342067,113990.0,113980.0,0.20771597]
[1759275698441,1.18766881,113990.0,113980.0,0.53196411]
[1759275706143,1.18766881,113990.0,113980.0,0.53191001]
[1759275706447,0.85289113,113990.0,113980.0,0.53191001]
[1759275706634,1.17713927,113990.0,113980.0,0.53191001]
[1759275707145,1.17713927,113990.0,113980.0,0.53131629]
[1759275707841,2.26218741,113990.0,113980.0,0.11934685]
[1759275708051,2.24792842,113990.0,113980.0,0.08090764]
[1759275708236,2.24792842,113990.0,113980.0,0.0808823]
[1759275715243,1.45196842,113990.0,113980.0,0.0808823]
[1759275715442,0.80347214,113990.0,113980.0,0.42742044]
[1759275715638,0.36692028,113990.0,113980.0,0.42742044]
[1759275715843,1.16272028,113990.0,113980.0,0.42742044]
[1759275716046,0.36692028,113990.0,113980.0,0.42742044]
[1759275716347,0.04267214,113990.0,113980.0,0.83938978]
[1759275716548,0.83847214,113990.0,113980.0,0.83938978]
[1759275716748,1.16272028,113990.0,113980.0,0.51514164]
[1759275717051,0.83847214,113990.0,113980.0,1.20018978]
[1759275717348,0.83847214,113990.0,113980.0,1.13700796]
[1759275717549,0.83847214,113990.0,113980.0,0.48851168]
[1759275717753,0.83847214,113990.0,113980.0,1.13700796]
[1759275717952,0.8835197,113990.0,113980.0,1.13700796]
[1759275719254,0.0877197,113990.0,113980.0,1.20009961]
[1759275719447,0.8835197,113990.0,113980.0,1.20009961]
[1759275719844,0.8839197,113990.0,113980.0,1.20009961]
[1759275721452,0.0881197,113990.0,113980.0,1.20009961]
[1759275721758,0.8838797,113990.0,113980.0,1.20009961]
[1759275722758,0.0881197,113990.0,113980.0,1.20009961]
[1759275722957,0.8838797,113990.0,113980.0,1.20009961]
[1759275723150,0.0004,113990.0,113980.0,1.20009961]
[1759275723355,0.79616,113990.0,113980.0,1.60009961]
[1759275723658,0.8834735,113990.0,113980.0,1.60009961]
[1759275723859,0.8838735,113990.0,113980.0,1.60009961]
[1759275724361,0.79616,113990.0,113980.0,1.60009961]
[1759275724662,0.0004,113990.0,113980.0,1.60009961]
[1759275725154,0.0877019,114010.0,114000.0,0.1227058]
[1759275725356,0.4500954,114020.0,114010.0,0.087698]
[1759275725656,0.4500954,114020.0,114010.0,0.44694614]
[1759275725657,1.56846354,114020.0,114010.0,0.44694614]
[1759275725857,1.56886354,114020.0,114010.0,0.122698]
[1759275726057,1.56886354,114020.0,114010.0,0.44694614]
[1759275726260,1.2446154,114020.0,114010.0,0.45127662]
[1759275726459,1.56886354,114020.0,114010.0,0.45127662]
[1759275727656,0.77314354,114020.0,114010.0,0.45127662]
[1759275727959,1.56882354,114020.0,114010.0,0.45127662]
[1759275728559,1.56882354,114020.0,114010.0,0.46011885]
[1759275728754,1.2445754,114020.0,114010.0,0.46011885]
[1759275728960,1.56882354,114020.0,114010.0,0.46011885]
[1759275729658,1.56882354,114020.0,114010.0,0.45127662]
[1759275729964,1.56882354,114020.0,114010.0,0.36357862]
[1759275730263,1.56882354,114020.0,114010.0,0.45127672]
[1759275730759,1.56882354,114020.0,114010.0,0.36357862]
[1759275731163,1.2445754,114020.0,114010.0,0.37246216]
[1759275731365,1.56882354,114020.0,114010.0,0.37246216]
[1759275731564,1.56882354,114020.0,114010.0,0.04821402]
[1759275731866,1.56882354,114020.0,114010.0,0.03933048]
[1759275732360,1.89307168,114020.0,114010.0,0.10839141]
[1759275732557,1.89307168,114020.0,114010.0,0.03933048]
[1759275733468,1.89299168,114020.0,114010.0,0.03933048]
[1759275735568,1.09739168,114020.0,114010.0,0.03933048]
[1759275735765,1.89295168,114020.0,114010.0,0.03933048]
[1759275736368,1.5685759,114020.0,114010.0,0.11119734]
[1759275736573,1.5685759,114020.0,114010.0,0.03933048]
[1759275737466,1.2444554,114020.0,114010.0,0.03933048]
[1759275737671,1.5685759,114020.0,114010.0,0.03933048]
[1759275741074,1.5685759,114020.0,114010.0,0.11042571]
[1759275742966,1.2444554,114020.0,114010.0,0.11042571]
[1759275743175,1.5685759,114020.0,114010.0,0.11042571]
[1759275744776,1.2444554,114020.0,114010.0,0.11042571]
[1759275745071,1.5685759,114020.0,114010.0,0.11042571]
[1759275747774,0.7730159,114020.0,114010.0,0.11042571]